bitfinex-derivatives/quotes_BTCF0:USTF0_20241029
["timestamp","ask_amount","ask_price","bid_price","bid_amount"]
[1730223230460,0.068489,73016.0,73015.0,0.068488]
[1730223230650,0.068489,73016.0,73015.0,0.175088]
[1730223231646,0.10534731,73017.0,73016.0,0.068488]
[1730223232054,0.068486,73019.0,73016.0,0.068488]
[1730223232356,0.068486,73018.0,73017.0,0.175087]
[1730223233154,0.10534731,73020.0,73017.0,0.175087]
[1730223233350,0.10534731,73020.0,73017.0,0.1066]
[1730223233557,0.10534731,73020.0,73018.0,0.1066]
[1730223233558,0.17383231,73020.0,73018.0,0.1066]
[1730223233858,0.068485,73019.0,73018.0,0.1066]
[1730223235553,0.17383231,73019.0,73018.0,0.1066]
[1730223235860,0.068485,73019.0,73018.0,0.1066]
[1730223236056,0.00205484,73022.0,73019.0,0.068485]
[1730223236252,0.00205484,73022.0,73021.0,0.068483]
[1730223238367,0.07053684,73022.0,73021.0,0.068483]
[1730223238554,0.14609825,73022.0,73021.0,0.068483]
[1730223239659,0.10406854,73022.0,73021.0,0.068483]
[1730223240256,0.03558654,73022.0,73021.0,0.068483]
[1730223240562,0.03558654,73022.0,73021.0,0.174883]
[1730223241061,0.00205484,73022.0,73021.0,0.174883]
[1730223241360,0.3608,73032.0,73021.0,0.174883]
[1730223241361,0.00072,73031.0,73030.0,0.068475]
[1730223241563,0.03352504,73031.0,73030.0,0.21174731]
[1730223241750,0.03352504,73031.0,73030.0,0.17382231]
[1730223241954,1.54202278,73040.0,73031.0,0.068474]
[1730223242155,0.07554895,73039.0,73030.0,0.10534731]
[1730223242457,0.17381531,73037.0,73031.0,0.1064]
[1730223242658,0.068472,73033.0,73032.0,0.1064]
[1730223242858,0.03352617,73033.0,73032.0,0.1064]
[1730223243057,0.10199817,73033.0,73032.0,0.1064]
[1730223243361,0.10199859,73033.0,73032.0,0.1064]
[1730223243866,0.068475,73030.0,73029.0,0.17382331]
[1730223244067,0.068475,73030.0,73029.0,0.28022331]
[1730223244957,0.10200159,73030.0,73029.0,0.28022331]
[1730223245255,0.10200159,73030.0,73029.0,0.17382331]
[1730223245468,0.10200159,73030.0,73029.0,0.28022331]
[1730223245967,0.068479,73026.0,73025.0,0.068478]
[1730223246159,0.068479,73026.0,73025.0,0.174878]
[1730223246360,0.10200159,73030.0,73029.0,0.068476]
[1730223246562,1.60200159,73030.0,73029.0,0.068476]
[1730223246762,1.568475,73030.0,73029.0,0.068476]
[1730223247270,0.068476,73029.0,73028.0,0.10534731]
[1730223247470,0.068476,73029.0,73028.0,0.21174731]
[1730223248062,1.50072,73030.0,73029.0,0.068476]
[1730223248263,1.5,73030.0,73029.0,0.068476]
[1730223248464,0.068476,73029.0,73028.0,0.1064]
[1730223248664,1.50072,73030.0,73026.0,0.068478]
[1730223248860,0.068478,73027.0,73026.0,0.068478]
[1730223249266,0.06848,73026.0,73025.0,0.068479]
[1730223249663,0.02502799,73028.0,73023.0,0.3622]
[1730223249859,0.06848,73024.0,73023.0,0.3608]
[1730223250067,0.068485,73019.0,73018.0,0.1064]
[1730223250565,0.068487,73017.0,73016.0,0.02526966]
[1730223250774,0.3608,73021.0,73014.0,0.21174731]
[1730223250969,0.068488,73016.0,73015.0,0.07054264]
[1730223251272,0.068488,73016.0,73015.0,0.00205364]
[1730223251470,0.17383531,73016.0,73015.0,0.00205364]
[1730223251673,0.068502,73001.0,73000.0,0.10534731]
[1730223252165,1.568502,73001.0,73000.0,0.10534731]
[1730223252984,1.568502,73001.0,73000.0,0.1295393]
[1730223253169,1.5,73001.0,73000.0,0.1980423]
[1730223253674,0.105,73015.0,73000.0,0.71434961]
[1730223253873,0.068492,73012.0,73004.0,0.3608]
[1730223254076,1.5,73011.0,73005.0,0.1074]
[1730223254274,1.5,73011.0,73010.0,0.068494]
[1730223254574,1.5,73011.0,73010.0,0.17384131]
[1730223255079,0.068488,73016.0,73012.0,0.068491]
[1730223255462,0.068488,73016.0,73014.0,0.068489]
[1730223256073,0.068489,73015.0,73014.0,0.068489]
[1730223257571,0.068488,73016.0,73010.0,0.17384031]
[1730223257873,0.068491,73014.0,73012.0,0.068491]
[1730223258075,0.10534731,73016.0,73009.0,0.04086408]
[1730223258274,0.068492,73012.0,73011.0,0.04086408]
[1730223258477,0.3608,73012.0,73007.0,0.1064]
[1730223258779,0.068495,73008.0,73007.0,0.1064]
[1730223259777,0.068496,73007.0,73006.0,0.10534731]
[1730223260078,0.3608,73012.0,72996.0,0.40166408]
[1730223260079,0.10534731,73008.0,72996.0,0.40166408]
[1730223260283,0.10534731,72999.0,72994.0,0.02500473]
[1730223260577,0.10534731,72999.0,72989.0,0.3608]
[1730223260578,0.02053423,72989.0,72987.0,0.1064]
[1730223260875,0.02053423,72989.0,72988.0,0.35053301]
[1730223260876,0.068513,72989.0,72988.0,0.35053301]
[1730223261075,1.568513,72989.0,72988.0,0.35053301]
[1730223261280,1.568513,72989.0,72988.0,0.45588032]
[1730223261470,1.568513,72989.0,72988.0,0.21566284]
[1730223262477,1.568513,72989.0,72988.0,0.32101015]
[1730223262981,1.5,72989.0,72988.0,0.38952415]
[1730223263274,0.27169657,72995.0,72988.0,0.38952415]
[1730223263468,0.27169657,72995.0,72994.0,0.17385631]
[1730223263666,0.27169657,72995.0,72994.0,0.38746407]
[1730223265375,0.34020457,72995.0,72994.0,0.31895507]
[1730223266080,0.34020457,72995.0,72994.0,0.31512469]
[1730223267572,0.34020457,72995.0,72994.0,0.20977738]
[1730223267773,1.84020457,72995.0,72994.0,0.20977738]
[1730223267985,2.04360457,72995.0,72994.0,0.20977738]
[1730223268274,2.04360457,72995.0,72994.0,0.08882303]
[1730223268582,2.04360457,72995.0,72988.0,0.36285508]
[1730223268583,0.068513,72989.0,72988.0,0.36285508]
[1730223269172,0.068512,72991.0,72988.0,0.36285508]
[1730223269367,0.068512,72991.0,72990.0,0.17385731]
[1730223270978,0.068512,72991.0,72990.0,0.10534731]
[1730223271182,0.068513,72989.0,72988.0,0.36285508]
[1730223272173,1.77241657,72995.0,72988.0,0.36285508]
[1730223272374,1.77169657,72995.0,72994.0,0.068509]
[1730223272776,0.27169657,72995.0,72994.0,0.068509]
[1730223274987,0.27169657,72995.0,72994.0,0.10924192]
[1730223275371,0.27169657,72995.0,72994.0,0.068509]
[1730223275572,0.27169657,72995.0,72994.0,0.18316121]
[1730223275783,0.15517581,72995.0,72994.0,0.18316121]
[1730223276178,0.15517581,72995.0,72994.0,0.27829532]
[1730223276586,1.65517581,72995.0,72994.0,0.18316121]
[1730223278284,1.65517581,72995.0,72994.0,0.27829532]
[1730223278877,1.65517581,72995.0,72994.0,0.18316121]
[1730223279374,1.5,72995.0,72994.0,0.54396121]
[1730223279576,0.1003,73003.0,73002.0,0.068501]
[1730223279784,0.3608,73005.0,73004.0,0.068499]
[1730223279981,0.3608,73005.0,73004.0,0.28725036]
[1730223280686,0.31967932,73005.0,73004.0,0.28725036]
[1730223281983,0.0008,73009.0,73006.0,0.068497]
[1730223282185,0.3608,73024.0,73006.0,0.068497]
[1730223282186,0.00205431,73034.0,73015.0,0.068488]
[1730223282487,1.601,73033.0,73032.0,0.068473]
[1730223282787,1.70634731,73033.0,73029.0,0.08152903]
[1730223282978,0.17382231,73030.0,73029.0,0.068475]
[1730223283176,0.068479,73026.0,73025.0,0.068479]
[1730223283479,0.17382631,73026.0,73025.0,0.27441665]
[1730223283982,0.17382631,73026.0,73025.0,0.18046584]
[1730223284181,0.17382631,73026.0,73025.0,0.27452631]
[1730223285691,0.10534731,73026.0,73025.0,0.27452631]
[1730223288287,0.10534731,73026.0,73025.0,0.16248033]
[1730223289991,0.10534731,73026.0,73025.0,0.24376855]
[1730223290292,0.3608,73027.0,73025.0,0.16248033]
[1730223290293,0.46614731,73027.0,73025.0,0.16248033]
[1730223290482,0.068479,73026.0,73025.0,0.068479]
[1730223290683,0.10201174,73026.0,73025.0,0.068479]
[1730223290885,0.10201175,73026.0,73025.0,0.068479]
[1730223291380,0.71084,73025.0,73007.0,0.3608]
[1730223291588,0.17384331,73008.0,73007.0,0.068495]
[1730223292085,1.67384331,73008.0,73007.0,0.068495]
[1730223292494,1.60534731,73008.0,73007.0,0.068495]
[1730223292886,1.63888882,73008.0,73007.0,0.068495]
[1730223297399,1.53354151,73008.0,73007.0,0.068495]
[1730223297901,1.53354116,73008.0,73007.0,0.068495]
[1730223298800,0.10534731,73010.0,73007.0,0.40824599]
[1730223299097,0.10534731,73010.0,73009.0,0.16342997]
[1730223299287,0.10534731,73010.0,73009.0,0.40825898]
[1730223299487,0.429292,73012.0,73011.0,0.068493]
[1730223299688,0.3608,73012.0,73011.0,0.27668828]
[1730223299891,1.8608,73012.0,73011.0,0.27668828]
[1730223300688,2.29905323,73012.0,73011.0,0.20819528]
[1730223301090,2.29905323,73012.0,73011.0,0.20640538]
[1730223303300,2.29905323,73012.0,73011.0,0.09416468]
[1730223304704,1.99352054,73012.0,73011.0,0.27516289]
[1730223305798,1.85322349,73012.0,73011.0,0.068493]
[1730223306399,1.81968123,73012.0,73011.0,0.068493]
[1730223307688,0.5,73026.0,73015.0,0.068489]
[1730223307897,0.03353511,73025.0,73021.0,0.10534731]
[1730223308205,0.5,73026.0,73025.0,0.068479]
[1730223309295,0.5,73026.0,73023.0,0.3608]
[1730223309296,1.37694731,73026.0,73017.0,0.3608]
[1730223309502,0.10534731,73018.0,73017.0,0.429287]
[1730223313797,0.10534731,73022.0,73021.0,0.068483]
[1730223315499,0.10534731,73022.0,73021.0,0.12275427]
[1730223315700,0.09299727,73025.0,73021.0,0.05427127]
[1730223316000,0.8608,73026.0,73025.0,0.068479]
[1730223316404,0.5,73026.0,73025.0,0.068479]
[1730223317403,0.5,73026.0,73025.0,0.26861674]
[1730223317607,0.5,73026.0,73025.0,0.43939663]
[1730223317811,0.5,73026.0,73025.0,0.34536149]
[1730223317997,0.5,73026.0,73025.0,0.37159974]
[1730223319309,0.5,73026.0,73025.0,0.39601282]
[1730223319505,0.5,73026.0,73025.0,0.50081282]
[1730223319912,0.5,73026.0,73025.0,0.16251974]
[1730223320100,0.5,73026.0,73025.0,0.068479]
[1730223320613,0.5,73026.0,73025.0,0.12269428]
[1730223320804,2.068479,73026.0,73025.0,0.12269428]
[1730223321104,2.068479,73026.0,73025.0,0.05421528]
[1730223322106,2.068479,73026.0,73017.0,0.38599001]
[1730223322107,0.068479,73025.0,73024.0,0.05421528]
[1730223322316,0.06848,73024.0,73023.0,0.068481]
[1730223322718,1.5,73024.0,73017.0,0.3608]
[1730223323016,1.5,73024.0,73023.0,0.068481]
[1730223323604,1.60534731,73024.0,73023.0,0.068481]
[1730223323811,1.5,73024.0,73023.0,0.068481]
[1730223326111,0.5,73026.0,73023.0,0.068481]
[1730223326312,0.5,73026.0,73025.0,0.068479]
[1730223328609,0.5,73026.0,73022.0,0.068482]
[1730223328812,0.17382831,73023.0,73022.0,0.068482]
[1730223329115,0.10534731,73023.0,73018.0,0.36232]
[1730223329308,0.068485,73020.0,73019.0,0.068485]
[1730223329523,0.17383231,73020.0,73019.0,0.068485]
[1730223331322,0.19862194,73020.0,73019.0,0.068485]
[1730223331622,0.13013694,73020.0,73019.0,0.1362385]
[1730223332014,0.13013694,73020.0,73019.0,0.23115335]
[1730223332713,0.13013694,73020.0,73019.0,0.16339985]
[1730223335424,0.5,73026.0,73025.0,0.068479]
[1730223335721,0.5,73026.0,73025.0,0.26910479]
[1730223336923,0.5,73026.0,73025.0,0.35065522]
[1730223337317,0.5,73026.0,73025.0,0.17382631]
[1730223338328,0.5,73026.0,73025.0,0.068479]
[1730223338823,0.5335313,73026.0,73025.0,0.068479]
[1730223339132,0.5,73026.0,73025.0,0.068479]
[1730223339327,2.0,73026.0,73025.0,0.068479]
[1730223343829,2.03353135,73026.0,73025.0,0.068479]
[1730223344030,2.0,73026.0,73025.0,0.068479]
[1730223344527,0.5,73026.0,73025.0,0.068479]
[1730223345332,0.5,73026.0,73025.0,0.27796395]
[1730223348424,0.5,73026.0,73025.0,0.38311396]
[1730223348636,0.45889163,73026.0,73025.0,0.38311396]
[1730223348938,0.41093207,73026.0,73025.0,0.51645999]
[1730223349329,0.41093207,73026.0,73025.0,0.61172388]
[1730223350335,0.41093207,73026.0,73025.0,0.51645999]
[1730223350551,0.41093207,73026.0,73025.0,0.61173292]
[1730223350732,0.41093207,73026.0,73025.0,0.51645999]
[1730223352442,0.48649004,73026.0,73025.0,0.17382631]
[1730223352629,0.80526225,73026.0,73020.0,0.068484]
[1730223352834,0.10534731,73021.0,73017.0,0.068486]
[1730223353133,0.07555997,73020.0,73019.0,0.068485]
[1730223353335,1.57555997,73020.0,73019.0,0.068485]
[1730223355441,0.068488,73016.0,73015.0,0.068488]
[1730223355639,0.20736549,73016.0,73015.0,0.068488]
[1730223355841,0.24939528,73016.0,73015.0,0.068488]
[1730223356744,0.18090728,73016.0,73015.0,0.068488]
[1730223357136,0.24939528,73016.0,73015.0,0.068488]
[1730223357336,0.20737099,73016.0,73015.0,0.068488]
[1730223357634,0.24940569,73016.0,73015.0,0.068488]
[1730223360242,0.068495,73008.0,73007.0,0.068496]
[1730223360539,0.10534731,73008.0,73007.0,0.4179466]
[1730223361041,0.10534731,73008.0,73007.0,0.42005718]
[1730223361342,0.17384231,73008.0,73007.0,0.42005718]
[1730223361544,0.17384231,73008.0,73007.0,0.28399751]
[1730223362946,1.67384231,73008.0,73007.0,0.28399751]
[1730223365139,1.62586871,73008.0,73007.0,0.28384581]
[1730223365648,1.65108504,73008.0,73007.0,0.16674124]
[1730223365845,1.65108504,73008.0,73007.0,0.09824524]
[1730223366351,1.65108504,73008.0,73007.0,0.1797927]
[1730223366843,1.65108504,73008.0,73007.0,0.09824524]
[1730223367044,1.65108504,73008.0,73007.0,0.17979276]
[1730223367440,0.068497,73006.0,73005.0,0.068498]
[1730223367647,0.429297,73006.0,73005.0,0.068498]
[1730223368454,0.3608,73006.0,73005.0,0.068498]
[1730223368750,0.3608,73006.0,73005.0,0.17384531]
[1730223369652,1.59443233,73008.0,73007.0,0.068496]
[1730223369854,1.59371233,73008.0,73007.0,0.068496]
[1730223373752,1.59371233,73008.0,72999.0,0.10534731]
[1730223373753,1.52521633,73008.0,72999.0,0.10534731]
[1730223373945,0.068499,73004.0,72999.0,0.10534731]
[1730223374255,0.068499,73004.0,73003.0,0.0685]
[1730223375451,0.068499,73004.0,73003.0,0.16587075]
[1730223377152,0.3608,73005.0,73004.0,0.068499]
[1730223377352,0.3608,73005.0,73004.0,0.35274613]
[1730223377558,0.3608,73005.0,73004.0,0.27121706]
[1730223378854,0.53464531,73005.0,73004.0,0.16586975]
[1730223379949,0.53464531,73005.0,73004.0,0.2819782]
[1730223380349,0.48667008,73005.0,73004.0,0.2819782]
[1730223383658,0.48667008,73005.0,73004.0,0.18399484]
[1730223383862,0.48667008,73005.0,73004.0,0.28089044]
[1730223386557,0.48667008,73005.0,73004.0,0.21239144]
[1730223388967,0.48667008,73005.0,73004.0,0.28089044]
[1730223389373,0.31282477,73005.0,73004.0,0.50976552]
[1730223389672,0.34636694,73005.0,73004.0,0.068499]
[1730223389876,0.41486494,73005.0,73004.0,0.068499]
[1730223390176,0.34636694,73005.0,73004.0,0.068499]
[1730223391172,0.0008,73008.0,73007.0,0.068496]
[1730223391470,0.41093207,73026.0,73022.0,0.068482]
[1730223391677,1.50205535,73023.0,73022.0,0.068482]
[1730223392270,1.50205535,73023.0,73019.0,0.0817]
[1730223392479,0.10740266,73023.0,73019.0,0.0817]
[1730223392676,0.00205535,73023.0,73019.0,0.0817]
[1730223392884,0.17383131,73020.0,73019.0,0.0817]
[1730223393176,0.20736565,73020.0,73019.0,0.0817]
[1730223393569,0.068484,73020.0,73019.0,0.0817]
[1730223393775,0.10740266,73023.0,73019.0,0.0817]
[1730223393972,0.068483,73022.0,73019.0,0.0817]
[1730223394168,0.10740266,73023.0,73019.0,0.0817]
[1730223394375,0.068484,73020.0,73019.0,0.0817]
[1730223395174,0.17383131,73020.0,73019.0,0.0817]
[1730223398077,0.068487,73017.0,73016.0,0.3608]
[1730223398381,0.068487,73017.0,73010.0,0.174213]
[1730223398382,0.10534731,73020.0,73014.0,0.42896907]
[1730223398770,0.068489,73015.0,73014.0,0.49745907]
[1730223398971,0.068489,73015.0,73014.0,0.52573958]
[1730223400371,0.068489,73015.0,73014.0,0.52528783]
[1730223400775,0.068489,73015.0,73014.0,0.42883825]
[1730223400982,0.068489,73015.0,73014.0,0.3608]
[1730223403277,0.068489,73015.0,73014.0,0.42883825]
[1730223403474,0.068489,73015.0,73014.0,0.52529604]
[1730223403687,0.068489,73015.0,73014.0,0.09647164]
[1730223403882,0.068489,73015.0,73013.0,0.06802894]
[1730223404092,0.068489,73015.0,73012.0,0.06802894]
[1730223404281,0.068489,73015.0,73008.0,0.19527159]
[1730223404282,0.10534731,73013.0,73011.0,0.06802894]
[1730223404582,0.12586826,73013.0,73012.0,0.09676591]
[1730223404784,0.17383831,73013.0,73012.0,0.09676591]
[1730223405683,0.17383831,73013.0,73012.0,0.16480487]
[1730223406182,0.17383831,73013.0,73012.0,0.1647948]
[1730223406387,0.17383831,73013.0,73012.0,0.09676591]
[1730223406585,0.17383831,73013.0,73012.0,0.09641506]
[1730223406984,0.19830063,73013.0,73012.0,0.09641506]
[1730223407180,0.19830063,73013.0,73012.0,0.16444663]
[1730223407380,0.19830063,73013.0,73012.0,0.09641506]
[1730223407779,0.068493,73011.0,73010.0,0.06804]
[1730223407988,0.53464031,73011.0,73010.0,0.16462283]
[1730223408382,2.03464031,73011.0,73010.0,0.16462283]
[1730223408590,2.03464031,73011.0,73010.0,0.16462368]
[1730223409092,2.03464031,73011.0,73010.0,0.09657766]
[1730223409996,2.03464031,73011.0,73010.0,0.16462181]
[1730223410389,2.03464031,73011.0,73010.0,0.09657766]
[1730223410582,1.67384031,73011.0,73010.0,0.09657766]
[1730223410788,2.03464031,73011.0,73010.0,0.09657766]
[1730223410992,2.03464031,73011.0,73010.0,0.09686856]
[1730223412697,0.068499,73004.0,73003.0,0.0685]
[1730223412890,1.99968856,73011.0,73006.0,0.068494]
[1730223412891,0.068497,73007.0,73006.0,0.068494]
[1730223413103,0.068491,73015.0,73014.0,0.068488]
[1730223413283,0.00205535,73023.0,73018.0,0.068484]
[1730223413284,0.068485,73019.0,73018.0,0.068484]
[1730223413488,0.00205535,73023.0,73018.0,0.10534731]
[1730223413689,0.00205535,73023.0,73017.0,0.068487]
[1730223413690,0.00205535,73023.0,73022.0,0.17382931]
[1730223413892,0.00205535,73023.0,73022.0,0.53462931]
[1730223414292,0.00205535,73023.0,73022.0,0.429282]
[1730223414696,0.068481,73023.0,73022.0,0.535002]
[1730223416197,0.068481,73023.0,73022.0,0.429282]
[1730223416397,0.068481,73023.0,73022.0,0.534882]
[1730223419489,0.41093207,73026.0,73025.0,0.068479]
[1730223419696,0.41093207,73026.0,73025.0,0.23263058]
[1730223419890,0.47941007,73026.0,73025.0,0.13654513]
[1730223420499,0.47941007,73026.0,73025.0,0.0961575]
[1730223420699,0.068479,73025.0,73024.0,0.06795883]
[1730223420899,0.068479,73025.0,73024.0,0.09616846]
[1730223420900,0.17382631,73025.0,73024.0,0.09616846]
[1730223421195,0.17382631,73025.0,73024.0,0.24204002]
[1730223421607,0.17382631,73025.0,73024.0,0.17408]
[1730223422290,0.17382631,73025.0,73024.0,0.1056]
[1730223422493,0.41093207,73026.0,73024.0,0.1056]
[1730223422704,0.068479,73025.0,73024.0,0.1056]
[1730223423905,0.41093207,73026.0,73022.0,0.3608]
[1730223424108,0.068482,73022.0,73021.0,0.1056]
[1730223424699,0.068484,73020.0,73019.0,0.068485]
[1730223425003,0.068484,73020.0,73019.0,0.174085]
[1730223425798,0.068484,73020.0,73018.0,0.06796002]
[1730223425799,0.10534731,73023.0,73018.0,0.06796002]
[1730223425994,0.17383231,73019.0,73018.0,0.06796002]
[1730223426210,0.068487,73017.0,73016.0,0.42876002]
[1730223426505,0.068487,73017.0,73016.0,0.429288]
[1730223426808,0.068487,73017.0,73016.0,0.3608]
[1730223427011,1.67383431,73017.0,73016.0,0.3608]
[1730223428707,1.67383431,73017.0,73010.0,0.02498013]
[1730223428898,0.068495,73008.0,73007.0,0.3608]
[1730223429403,0.068495,73008.0,73005.0,0.174098]
[1730223429404,0.068499,73004.0,73003.0,0.1652]
[1730223429804,0.068499,73004.0,73003.0,0.2337]
[1730223430306,0.068494,73010.0,73009.0,0.068494]
[1730223431609,0.068495,73008.0,73006.0,0.3608]
[1730223431805,0.068496,73007.0,73006.0,0.429297]
[1730223432601,0.068496,73007.0,73006.0,0.3608]
[1730223433316,0.068496,73007.0,72998.0,0.46790731]
[1730223433506,0.068523,72978.0,72969.0,5.6e-07]
[1730223433808,0.068544,72956.0,72955.0,0.068545]
[1730223434007,0.068544,72956.0,72954.0,0.2543]
[1730223434008,0.068545,72955.0,72954.0,0.2543]
[1730223434209,0.068545,72955.0,72954.0,0.0881]
[1730223434411,0.068545,72955.0,72954.0,0.11283952]
[1730223434412,0.10534731,72955.0,72954.0,0.11283952]
[1730223434613,0.17389231,72955.0,72954.0,0.11283952]
[1730223434921,0.17389231,72955.0,72947.0,0.068552]
[1730223434922,0.068551,72949.0,72947.0,0.068552]
[1730223435211,0.3608,72951.0,72948.0,0.20381312]
[1730223435516,0.06855,72950.0,72949.0,0.09298299]
[1730223435815,0.06855,72950.0,72949.0,0.17451308]
[1730223436008,0.06855,72950.0,72949.0,0.17393839]
[1730223436514,0.06855,72950.0,72949.0,0.0924083]
[1730223436717,0.06855,72950.0,72949.0,0.09229774]
[1730223437614,0.06855,72950.0,72949.0,0.16009994]
[1730223438507,0.06855,72950.0,72947.0,0.17390031]
[1730223439315,0.06855,72950.0,72947.0,0.24170251]
[1730223439510,0.06855,72950.0,72947.0,0.17390031]
[1730223441408,0.06855,72950.0,72949.0,0.0540711]
[1730223442109,0.068552,72948.0,72947.0,0.10534731]
[1730223442713,0.36076618,72951.0,72947.0,0.19747243]
[1730223443018,0.068552,72948.0,72947.0,0.06755319]
[1730223443219,0.068552,72948.0,72947.0,0.15968711]
[1730223443418,0.068553,72947.0,72946.0,0.06755555]
[1730223444320,0.068553,72947.0,72946.0,0.1591726]
[1730223444619,0.068553,72947.0,72946.0,0.06755555]
[1730223445024,0.10534731,72947.0,72943.0,0.09252204]
[1730223445319,0.068553,72946.0,72945.0,0.05402455]
[1730223445516,0.10534731,72947.0,72944.0,0.05402455]
[1730223445714,1.5,72946.0,72943.0,0.05402455]
[1730223446018,0.068566,72933.0,72932.0,0.06755555]
[1730223446320,0.068566,72933.0,72932.0,0.1302453]
[1730223446321,0.429366,72933.0,72932.0,0.1302453]
[1730223447017,0.429366,72933.0,72932.0,0.02489799]
[1730223447224,0.068567,72932.0,72931.0,0.00205678]
[1730223448515,1.568567,72932.0,72931.0,0.00205678]
[1730223448916,1.568567,72932.0,72920.0,0.06755555]
[1730223448917,0.068572,72926.0,72920.0,0.06755555]
[1730223449214,0.068572,72926.0,72918.0,0.06755555]
[1730223449215,0.068579,72919.0,72918.0,0.06755555]
[1730223449419,0.3608,72921.0,72916.0,0.10534731]
[1730223449618,0.3608,72921.0,72912.0,0.17290286]
[1730223449821,0.3608,72921.0,72912.0,0.06755555]
[1730223449822,0.068584,72913.0,72912.0,0.06755555]
[1730223450022,0.3608,72915.0,72912.0,0.10534731]
[1730223450220,0.068584,72913.0,72912.0,0.10534731]
[1730223450411,0.17393131,72913.0,72912.0,0.02500181]
[1730223450615,0.17393131,72913.0,72906.0,0.06961302]
[1730223450616,0.06859,72907.0,72906.0,0.00205747]
[1730223450819,1.92939,72907.0,72906.0,0.00205747]
[1730223451618,0.068592,72906.0,72891.0,0.06755555]
[1730223451829,0.3608,72893.0,72892.0,0.068604]
[1730223452325,0.429403,72893.0,72892.0,0.068604]
[1730223452523,0.068606,72891.0,72885.0,0.17290286]
[1730223452820,0.46614731,72893.0,72884.0,0.06755555]
[1730223453021,0.068611,72885.0,72884.0,0.06755555]
[1730223453221,0.3608,72886.0,72881.0,0.16033279]
[1730223453432,0.068614,72882.0,72881.0,0.02416224]
[1730223453727,0.3608,72886.0,72881.0,0.10534731]
[1730223453929,0.42941,72886.0,72881.0,0.17396131]
[1730223454223,0.3608,72886.0,72879.0,0.02657332]
[1730223454424,0.3608,72886.0,72885.0,0.17395831]
[1730223454727,0.3608,72892.0,72890.0,0.068606]
[1730223454920,0.0686,72897.0,72893.0,0.10534731]
[1730223455318,0.36285824,72900.0,72898.0,0.068598]
[1730223455518,0.36285824,72900.0,72899.0,0.17394531]
[1730223455724,0.00205824,72900.0,72899.0,0.17394531]
[1730223456529,0.3608,72908.0,72901.0,0.068596]
[1730223456530,0.10534731,72902.0,72901.0,0.068596]
[1730223456823,0.3608,72908.0,72903.0,0.068594]
[1730223456824,0.10534731,72906.0,72903.0,0.068594]
[1730223457127,0.17393831,72906.0,72903.0,0.068594]
[1730223457515,0.3608,72908.0,72902.0,0.10534731]
[1730223457716,0.3608,72908.0,72907.0,0.06859]
[1730223458428,0.3608,72908.0,72906.0,0.10534731]
[1730223458429,0.10534731,72912.0,72911.0,0.068586]
[1730223458615,0.46614731,72916.0,72908.0,0.068588]
[1730223458818,0.10534731,72912.0,72911.0,0.068586]
[1730223459030,0.10534731,72916.0,72910.0,0.10534731]
[1730223459231,0.10534731,72916.0,72914.0,0.068583]
[1730223459422,0.10534731,72916.0,72912.0,0.06755555]
[1730223459623,0.10534731,72916.0,72915.0,0.068582]
[1730223460131,0.3608,72918.0,72913.0,0.06755555]
[1730223460324,0.3608,72918.0,72915.0,0.06755555]
[1730223460630,0.068581,72917.0,72916.0,0.09160046]
[1730223462025,0.068581,72917.0,72916.0,0.17288896]
[1730223462527,0.068581,72917.0,72916.0,0.20123682]
[1730223463030,0.3608,72918.0,72917.0,0.068581]
[1730223463232,0.42938,72918.0,72917.0,0.26981782]
[1730223463523,0.00205771,72922.0,72921.0,0.068577]
[1730223463722,0.00205771,72922.0,72921.0,0.20112884]
[1730223463924,0.07063371,72922.0,72921.0,0.09160046]
[1730223464123,0.07063371,72922.0,72921.0,0.2010603]
[1730223464627,0.00205771,72922.0,72921.0,0.2696373]
[1730223464821,0.00205771,72922.0,72921.0,0.068577]
[1730223465725,0.10356168,72923.0,72921.0,0.174217]
[1730223466030,0.03498568,72922.0,72921.0,0.174217]
[1730223467825,0.03484855,72922.0,72921.0,0.174217]
[1730223468925,0.03484855,72922.0,72918.0,0.2516]
[1730223469129,0.03484855,72921.0,72919.0,0.1056]
[1730223469317,0.10534731,72920.0,72917.0,0.02486353]
[1730223469525,0.10328204,72919.0,72918.0,0.09497967]
[1730223469834,0.20862935,72919.0,72918.0,0.09497967]
[1730223470319,0.068581,72917.0,72914.0,0.174184]
[1730223470625,0.03470304,72916.0,72914.0,0.174184]
[1730223470826,0.068586,72912.0,72910.0,0.38518491]
[1730223471035,0.10534731,72922.0,72910.0,0.49053222]
[1730223471233,0.06858,72919.0,72915.0,0.068582]
[1730223471425,0.068582,72917.0,72916.0,0.068581]
[1730223471735,0.10310449,72917.0,72916.0,0.068581]
[1730223472123,0.068582,72917.0,72916.0,0.068581]
[1730223472327,0.10297443,72917.0,72916.0,0.068581]
[1730223472931,0.10297443,72917.0,72916.0,0.16112362]
[1730223472932,0.068582,72917.0,72916.0,0.16112362]
[1730223473328,0.068582,72917.0,72916.0,0.24262009]
[1730223474148,0.068582,72917.0,72916.0,0.16112362]
[1730223474440,0.068582,72917.0,72916.0,0.09254262]
[1730223474633,0.429382,72917.0,72916.0,0.09254262]
[1730223475428,0.10534731,72918.0,72916.0,0.09254262]
[1730223475737,0.10534731,72918.0,72914.0,0.174183]
[1730223475738,0.10534731,72923.0,72917.0,0.20282679]
[1730223475939,0.10534731,72923.0,72914.0,0.1056]
[1730223475940,0.068577,72921.0,72920.0,0.08184853]
[1730223476143,0.068577,72921.0,72920.0,0.17439488]
[1730223476441,0.068577,72921.0,72920.0,0.09254262]
[1730223476829,0.068577,72921.0,72920.0,0.09222005]
[1730223477034,0.068577,72921.0,72920.0,0.16079805]
[1730223477230,0.3608,72925.0,72924.0,0.068574]
[1730223477432,0.3608,72925.0,72924.0,0.27078048]
[1730223477732,0.429373,72925.0,72924.0,0.27078048]
[1730223478337,0.38134783,72925.0,72924.0,0.27078048]
[1730223478534,0.38134783,72925.0,72924.0,0.20220648]
[1730223479742,0.38134783,72925.0,72924.0,0.09222005]
[1730223479946,0.068577,72921.0,72920.0,0.02417842]
[1730223480131,0.068582,72916.0,72915.0,0.068582]
[1730223480336,0.17392931,72916.0,72915.0,0.068582]
[1730223481038,0.068583,72915.0,72914.0,0.3608]
[1730223481234,0.068544,72914.0,72901.0,0.00205748]
[1730223481437,0.10534731,72903.0,72901.0,0.00205748]